Workbook

Sheet Main
A1: Energy Savings Calculator for
A2: Advanced Technology Specification:
A3: Heat Pump Water Heaters
A7: Summary
A8: This calculator is intended to illustrate the potential energy savings from the implementation of a heat pump water heater meeting the requirements of the Commercial Building Energy Alliance heat pump water heater specification, as compared to a typical electric storage water heater.
A11: Instructions
A12: In order to accurately estimate the energy savings from a heat pump water heater, some user inputs are required. Below, please select the appropriate representative building. Based on the building type selected, suggested operating characteristics will be provided in dropdowns in each of the BLUE boxes. If you select "Other" in any of the dropdowns, you may enter your own value in the "Other" column.
A16: User Inputs: | G16: Value | H16: Value if "Other" | I16: Units
A17: a. | B17: Select the reference building type that most closely represents your commercial building: | G17: <Select Building Type>
A19: b. | B19: Days of operation for your building: | G19: <Select Annual Operating Days> | I19: days/year
A21: c. | B21: Building daily hot water consumption: | G21: <Select Hot Water Consumption> | I21: gallons/day
A23: d. | B23: Water heater water inlet temperature: | G23: <Select Inlet Temperature> | I23: °F
A25: e. | B25: Water heater water outlet temperature: | G25: <Select Outlet Temperature> | I25: °F
A27: f. | B27: Select the electricity region* that most closely reflects the location of your commercial building, or change your local electricity cost below: | G27: <Select Electricity Region>
B28: * Electricity cost represents the average for each region, per December 2011
A29: g. | B29: Local electricity cost: | G29: - | I29: cents/kWh
A33: Results
D35: Electric Storage Water Heater (Baseline) | F35: CBEA Heat Pump Water Heater
B36: Annual Energy Consumption (kWh): | C36: -2.237201002e+182 | D36: =IFERROR(Dropdowns!D21, "") ->  | F36: =IFERROR(Dropdowns!D24, "") -> 
B37: Annual Energy Cost ($/yr): | C37: -335544.32 | D37: =IFERROR(Dropdowns!D21*G29/100,"") ->  | F37: =IFERROR(Dropdowns!D24*G29/100,"") -> 
B38: Annual Savings over Baseline (kWh): | D38: - | F38: =IFERROR(D36-F36,"") -> 
B39: Annual Savings over Baseline ($): | D39: - | F39: =IFERROR(D37-F37,"") -> 
B41: To learn more about how to start saving, please visit the CBEA Technology Specification Website

Sheet Calculations (hidden)
A1: 1. Determine annual water heating load
B2: <Select Building Type> | C2: Quick Service Chain | D2: Small Box Coffee
B3: Days of Operation | C3: 365 | D3: 365 | G3: User defined
B4: Hot Water Consumption (gallons/day) | C4: 500 | D4: 200 | G4: Constant
B5: Water Inlet Temperature (°F) | C5: 60 | D5: 60 | G5: Calculation
B6: Hot Water Outlet Temperature (°F) | C6: 140 | D6: 135
B7: Specific Weight of Water @ 110°F (lb/US gallon) | C7: 8.27 | D7: 8.27
B8: Specific Heat of Water @ 110°F (Btu/lb-°F) | C8: 0.999 | D8: 0.999
B10: Annual Water Heating Load (Btu/yr) | C10: =C3*C4*(C6-C5)*C7*C8 -> 120621258 | D10: =D3*D4*(D6-D5)*D7*D8 -> 45232971.75
A13: 2. Determine annual energy consumption
B14: Thermal Efficiency | C14: 1 | D14: 1
B15: Annual Energy Consumption (Btu/yr) | C15: =C10/C14 -> 120621258 | D15: =D10/D14 -> 45232971.75
A18: 3. Convert Btu/yr to kWh/yr
B19: Converter Constant | C19: 3412 | D19: 3412
B20: Annual Energy Consumption (kWh/yr) | C20: =C15/C19 -> 35352.06858 | D20: =D15/D19 -> 13257.02572
A23: 4. Determine annual energy cost
B24: <Select Electricity Region> | C24: East Coast (PADD 1) | D24: Midwest (PADD 2) | E24: Gulf Coast (PADD 3) | F24: Rocky Mountain (PADD 4) | G24: West Coast (PADD 5) | H24: U.S. Average
B25: 2010 Electricity Price, per EIA (cents/kWh) | C25: =AVERAGE('EIA Electricity Prices'!E8:E25) -> 11.79555556 | D25: =AVERAGE('EIA Electricity Prices'!E26:E40) -> 8.413333333 | E25: =AVERAGE('EIA Electricity Prices'!E41:E46) -> 8.845 | F25: =AVERAGE('EIA Electricity Prices'!E47:E51) -> 7.778 | G25: =AVERAGE('EIA Electricity Prices'!E52:E58) -> 12.45571429 | H25: ='EIA Electricity Prices'!E69 -> 10.19
B26: Annual energy cost, Quick Service Chain | C26: =$C$20*C25/100 -> 4169.97289 | D26: =$C$20*D25/100 -> 2974.28737 | E26: 3126.890466 | F26: 2749.683894 | G26: 4403.352657 | H26: 3602.375788
B27: Annual energy cost, Small Box Coffee | C27: =$D$20*C25/100 -> 1563.739834 | D27: =$D$20*D25/100 -> 1115.357764 | E27: 1172.583925 | F27: 1031.13146 | G27: 1651.257246 | H27: 1350.890921
A31: 5. Determine HPWH annual energy consumption
B32: COP of existing water heater | C32: 1 | D32: 1
B33: COP of HPWH | C33: 4.2 | D33: 4.2
B34: HWPH Energy Savings over ESWH | C34: 0.7 | D34: 0.7
B35: Annual Energy Consumption (Btu/yr) | C35: =(1-C34)*C10 -> 36186377.4 | D35: =(1-D34)*D10 -> 13569891.53
B36: Annual Energy Consumption (kWh/yr) | C36: =C35/C19 -> 10605.62057 | D36: =D35/D19 -> 3977.107715
A39: 6. Determine HPWH annual energy cost | C39: East Coast (PADD 1) | D39: Midwest (PADD 2) | E39: Gulf Coast (PADD 3) | F39: Rocky Mountain (PADD 4) | G39: West Coast (PADD 5) | H39: U.S. Average
B40: Annual energy cost, Quick Service Chain | C40: =$C$36*C25/100 -> 1250.991867 | D40: =$C$36*D25/100 -> 892.286211 | E40: 938.0671398 | F40: 824.9051683 | G40: 1321.005797 | H40: 1080.712737
B41: Annual energy cost, Small Box Coffee | C41: =$D$36*C25/100 -> 469.1219501 | D41: =$D$36*D25/100 -> 334.6073291 | E41: =$D$36*E25/100 -> 351.7751774 | F41: 309.3394381 | G41: 495.3771739 | H41: 405.2672762
A44: 7. Determine energy and cost savings
B46: Annual Energy Savings (kWh/yr) | C46: =C20-C36 -> 24746.44801 | D46: =D20-D36 -> 9279.918003
C47: East Coast (PADD 1) | D47: Midwest (PADD 2) | E47: Gulf Coast (PADD 3) | F47: Rocky Mountain (PADD 4) | G47: West Coast (PADD 5) | H47: U.S. Average
B48: Annual Cost Savings, Quick Service Chain | C48: =C26-C40 -> 2918.981023 | D48: =D26-D40 -> 2082.001159 | E48: 2188.823326 | F48: 1924.778726 | G48: 3082.34686 | H48: 2521.663052
B49: Annual Cost Savings, Small Box Coffee | C49: =C27-C41 -> 1094.617884 | D49: 780.7504346 | E49: 820.8087473 | F49: 721.7920222 | G49: 1155.880072 | H49: 945.6236445
A60: 2. Using load profile, calculate % Times. Then calculate Actual Times (per year)
B61: Hours per Year (constant): | E61: =24*365 -> 8760
B62: Hours per Week (constant): | E62: =24*7 -> 168
B64: See Load Profiles tab for % time and Actual Time calculations
A67: 3. Need Reference Building EUI and SF (or Total Energy Use and SF)
B69: Building Type | C69: Location | D69: Vintage | E69: EUI | G69: Reference SF | I69: Annual Energy Use
B70: =Main!$G$17 -> <Select Building Type> | C70: =Main!G27 -> <Select Electricity Region> | D70: =Main!G29 -> - | E70: =INDEX(#REF!, MATCH(Calculations!D70,#REF!, 0)+MATCH(Calculations!$B$70,#REF!, 0), MATCH(Calculations!$C$70,#REF!, 0)) ->  | F70: kBtu/ft2/yr | G70: =VLOOKUP($B$70,#REF!, 19, FALSE) ->  | H70: SF | I70: =E70*G70 ->  | J70: kBtu/yr | K70: =I70/$C$75 ->  | L70: kWh
A71: From: | B71: Main tab | C71: Main tab | D71: Main tab | E71: EUI tab | G71: EUI tab | I71: Calculation | K71: Conversion
A74: 4. Convert kBtu/ft2/yr to kWh/SF
B75: Btu/Wh: | C75: 3.412141633 | D75: Hard-coded constant
A78: 5. Calculate Annual Energy Use in kBtu, convert to kWh
B79: See 3. above (Annual Energy Use)
A82: 6. Determine Capacity and Calculated Annual Energy Use through Goal Seek
B83: Note: This will be dependent on the load profile selected
I84: Sample Load Profile Selected
B85: Calculated Annual Energy Use: | E85: =$C$86*(K88*L88+K89*L89) ->  | F85: kWh | I85: Name: | J85: =VLOOKUP($B$70, $J$5:$K$58, 2, FALSE) -> 
B86: Capacity: | C86: 386.4999002 | D86: kW | I86: Annual Energy Use (kWh): | K86: =$K$70 ->  | M86: Square Feet: | N86: =$G$70 ->  | P86: Efficiencies | S86: Building Energy Use | V86: Transformer Energy Use
I87: Load Profile: | K87: % Loading | L87: Actual Time | M87: Power Draw (kVA) | N87: Power Draw/SF (kVA/SF) | O87: User Power Draw (kVA) | P87: BL Eff | Q87: T2 Eff | R87: T2NLL Eff | S87: Baseline | T87: T2 | U87: T2NLL | V87: Baseline | W87: T2 | X87: T2NLL | Z87: User % Loading
C88: =E85/K86 ->  | J88: 1 | K88: =IF(INDEX(#REF!,MATCH(Calculations!$J$85,#REF!,0)+MATCH($J88,#REF!,0),2)=0,"",INDEX(#REF!,MATCH(Calculations!$J$85,#REF!,0)+MATCH($J88,#REF!,0),2)) ->  | L88: =IF(INDEX(#REF!,MATCH(Calculations!$J$85,#REF!,0)+MATCH($J88,#REF!,0),7)=0,"",INDEX(#REF!,MATCH(Calculations!$J$85,#REF!,0)+MATCH($J88,#REF!,0),7)) ->  | M88: =IF(L88="","",K88*$C$86) ->  | N88: =IF(M88="", "", M88/$N$86) ->  | O88: =IF(N88="", "", N88*$D$116) ->  | P88: =IF(O88="", "", VLOOKUP($O88, $C$126:$F$146, 2)) ->  | Q88: =IF(P88="", "", VLOOKUP($O88, $C$126:$F$146, 3)) ->  | R88: =IF(Q88="", "", VLOOKUP($O88, $C$126:$F$146, 4)) ->  | S88: =IF(R88="", "", $O88*$L88/P88) ->  | T88: =IF(S88="", "", $O88*$L88/Q88) ->  | U88: =IF(T88="", "", $O88*$L88/R88) ->  | V88: =IF(P88="", "", $O88*$L88/P88-($O88*$L88)) ->  | W88: =IF(Q88="", "", $O88*$L88/Q88-($O88*$L88)) ->  | X88: =IF(R88="", "", $O88*$L88/R88-($O88*$L88)) ->  | Z88: =IF(U88="", "", O88/$D$122) -> 
J89: 2 | K89: =IF(INDEX(#REF!,MATCH(Calculations!$J$85,#REF!,0)+MATCH($J89,#REF!,0),2)=0,"",INDEX(#REF!,MATCH(Calculations!$J$85,#REF!,0)+MATCH($J89,#REF!,0),2)) ->  | L89: =IF(INDEX(#REF!,MATCH(Calculations!$J$85,#REF!,0)+MATCH($J89,#REF!,0),7)=0,"",INDEX(#REF!,MATCH(Calculations!$J$85,#REF!,0)+MATCH($J89,#REF!,0),7)) ->  | M89: =IF(L89="","",K89*$C$86) ->  | N89: =IF(M89="", "", M89/$N$86) ->  | S89: =IF(R89="", "", $O89*$L89/P89) ->  | T89: =IF(S89="", "", $O89*$L89/Q89) ->  | U89: =IF(T89="", "", $O89*$L89/R89) ->  | V89: =IF(P89="", "", $O89*$L89/P89-($O89*$L89)) ->  | W89: =IF(Q89="", "", $O89*$L89/Q89-($O89*$L89)) ->  | X89: =IF(R89="", "", $O89*$L89/R89-($O89*$L89)) -> 
B90: Note: The Goal Seek macro seeks the Annual Energy Use to the Load Profile AEU by changing the Capacity | J90: 3 | K90: =IF(INDEX(#REF!,MATCH(Calculations!$J$85,#REF!,0)+MATCH($J90,#REF!,0),2)=0,"",INDEX(#REF!,MATCH(Calculations!$J$85,#REF!,0)+MATCH($J90,#REF!,0),2)) ->  | L90: =IF(INDEX(#REF!,MATCH(Calculations!$J$85,#REF!,0)+MATCH($J90,#REF!,0),7)=0,"",INDEX(#REF!,MATCH(Calculations!$J$85,#REF!,0)+MATCH($J90,#REF!,0),7)) -> 
J91: 4 | K91: =IF(INDEX(#REF!,MATCH(Calculations!$J$85,#REF!,0)+MATCH($J91,#REF!,0),2)=0,"",INDEX(#REF!,MATCH(Calculations!$J$85,#REF!,0)+MATCH($J91,#REF!,0),2)) ->  | L91: =IF(INDEX(#REF!,MATCH(Calculations!$J$85,#REF!,0)+MATCH($J91,#REF!,0),7)=0,"",INDEX(#REF!,MATCH(Calculations!$J$85,#REF!,0)+MATCH($J91,#REF!,0),7)) -> 
J92: 5 | K92: =IF(INDEX(#REF!,MATCH(Calculations!$J$85,#REF!,0)+MATCH($J92,#REF!,0),2)=0,"",INDEX(#REF!,MATCH(Calculations!$J$85,#REF!,0)+MATCH($J92,#REF!,0),2)) ->  | L92: =IF(INDEX(#REF!,MATCH(Calculations!$J$85,#REF!,0)+MATCH($J92,#REF!,0),7)=0,"",INDEX(#REF!,MATCH(Calculations!$J$85,#REF!,0)+MATCH($J92,#REF!,0),7)) -> 
J93: 6 | K93: =IF(INDEX(#REF!,MATCH(Calculations!$J$85,#REF!,0)+MATCH($J93,#REF!,0),2)=0,"",INDEX(#REF!,MATCH(Calculations!$J$85,#REF!,0)+MATCH($J93,#REF!,0),2)) ->  | L93: =IF(INDEX(#REF!,MATCH(Calculations!$J$85,#REF!,0)+MATCH($J93,#REF!,0),7)=0,"",INDEX(#REF!,MATCH(Calculations!$J$85,#REF!,0)+MATCH($J93,#REF!,0),7)) -> 
J94: 7 | K94: =IF(INDEX(#REF!,MATCH(Calculations!$J$85,#REF!,0)+MATCH($J94,#REF!,0),2)=0,"",INDEX(#REF!,MATCH(Calculations!$J$85,#REF!,0)+MATCH($J94,#REF!,0),2)) ->  | L94: =IF(INDEX(#REF!,MATCH(Calculations!$J$85,#REF!,0)+MATCH($J94,#REF!,0),7)=0,"",INDEX(#REF!,MATCH(Calculations!$J$85,#REF!,0)+MATCH($J94,#REF!,0),7)) -> 
J95: 8 | K95: =IF(INDEX(#REF!,MATCH(Calculations!$J$85,#REF!,0)+MATCH($J95,#REF!,0),2)=0,"",INDEX(#REF!,MATCH(Calculations!$J$85,#REF!,0)+MATCH($J95,#REF!,0),2)) ->  | L95: =IF(INDEX(#REF!,MATCH(Calculations!$J$85,#REF!,0)+MATCH($J95,#REF!,0),7)=0,"",INDEX(#REF!,MATCH(Calculations!$J$85,#REF!,0)+MATCH($J95,#REF!,0),7)) -> 
J96: 9 | K96: =IF(INDEX(#REF!,MATCH(Calculations!$J$85,#REF!,0)+MATCH($J96,#REF!,0),2)=0,"",INDEX(#REF!,MATCH(Calculations!$J$85,#REF!,0)+MATCH($J96,#REF!,0),2)) ->  | L96: =IF(INDEX(#REF!,MATCH(Calculations!$J$85,#REF!,0)+MATCH($J96,#REF!,0),7)=0,"",INDEX(#REF!,MATCH(Calculations!$J$85,#REF!,0)+MATCH($J96,#REF!,0),7)) -> 
J97: 10 | K97: =IF(INDEX(#REF!,MATCH(Calculations!$J$85,#REF!,0)+MATCH($J97,#REF!,0),2)=0,"",INDEX(#REF!,MATCH(Calculations!$J$85,#REF!,0)+MATCH($J97,#REF!,0),2)) ->  | L97: =IF(INDEX(#REF!,MATCH(Calculations!$J$85,#REF!,0)+MATCH($J97,#REF!,0),7)=0,"",INDEX(#REF!,MATCH(Calculations!$J$85,#REF!,0)+MATCH($J97,#REF!,0),7)) -> 
J98: 11 | K98: =IF(INDEX(#REF!,MATCH(Calculations!$J$85,#REF!,0)+MATCH($J98,#REF!,0),2)=0,"",INDEX(#REF!,MATCH(Calculations!$J$85,#REF!,0)+MATCH($J98,#REF!,0),2)) ->  | L98: =IF(INDEX(#REF!,MATCH(Calculations!$J$85,#REF!,0)+MATCH($J98,#REF!,0),7)=0,"",INDEX(#REF!,MATCH(Calculations!$J$85,#REF!,0)+MATCH($J98,#REF!,0),7)) -> 
J99: 12 | K99: =IF(INDEX(#REF!,MATCH(Calculations!$J$85,#REF!,0)+MATCH($J99,#REF!,0),2)=0,"",INDEX(#REF!,MATCH(Calculations!$J$85,#REF!,0)+MATCH($J99,#REF!,0),2)) ->  | L99: =IF(INDEX(#REF!,MATCH(Calculations!$J$85,#REF!,0)+MATCH($J99,#REF!,0),7)=0,"",INDEX(#REF!,MATCH(Calculations!$J$85,#REF!,0)+MATCH($J99,#REF!,0),7)) -> 
J100: 13 | K100: =IF(INDEX(#REF!,MATCH(Calculations!$J$85,#REF!,0)+MATCH($J100,#REF!,0),2)=0,"",INDEX(#REF!,MATCH(Calculations!$J$85,#REF!,0)+MATCH($J100,#REF!,0),2)) ->  | L100: =IF(INDEX(#REF!,MATCH(Calculations!$J$85,#REF!,0)+MATCH($J100,#REF!,0),7)=0,"",INDEX(#REF!,MATCH(Calculations!$J$85,#REF!,0)+MATCH($J100,#REF!,0),7)) -> 
J101: 14 | K101: =IF(INDEX(#REF!,MATCH(Calculations!$J$85,#REF!,0)+MATCH($J101,#REF!,0),2)=0,"",INDEX(#REF!,MATCH(Calculations!$J$85,#REF!,0)+MATCH($J101,#REF!,0),2)) ->  | L101: =IF(INDEX(#REF!,MATCH(Calculations!$J$85,#REF!,0)+MATCH($J101,#REF!,0),7)=0,"",INDEX(#REF!,MATCH(Calculations!$J$85,#REF!,0)+MATCH($J101,#REF!,0),7)) -> 
J102: 15 | K102: =IF(INDEX(#REF!,MATCH(Calculations!$J$85,#REF!,0)+MATCH($J102,#REF!,0),2)=0,"",INDEX(#REF!,MATCH(Calculations!$J$85,#REF!,0)+MATCH($J102,#REF!,0),2)) ->  | L102: =IF(INDEX(#REF!,MATCH(Calculations!$J$85,#REF!,0)+MATCH($J102,#REF!,0),7)=0,"",INDEX(#REF!,MATCH(Calculations!$J$85,#REF!,0)+MATCH($J102,#REF!,0),7)) -> 
J103: 16 | K103: =IF(INDEX(#REF!,MATCH(Calculations!$J$85,#REF!,0)+MATCH($J103,#REF!,0),2)=0,"",INDEX(#REF!,MATCH(Calculations!$J$85,#REF!,0)+MATCH($J103,#REF!,0),2)) ->  | L103: =IF(INDEX(#REF!,MATCH(Calculations!$J$85,#REF!,0)+MATCH($J103,#REF!,0),7)=0,"",INDEX(#REF!,MATCH(Calculations!$J$85,#REF!,0)+MATCH($J103,#REF!,0),7)) -> 
J104: 17 | K104: =IF(INDEX(#REF!,MATCH(Calculations!$J$85,#REF!,0)+MATCH($J104,#REF!,0),2)=0,"",INDEX(#REF!,MATCH(Calculations!$J$85,#REF!,0)+MATCH($J104,#REF!,0),2)) ->  | L104: =IF(INDEX(#REF!,MATCH(Calculations!$J$85,#REF!,0)+MATCH($J104,#REF!,0),7)=0,"",INDEX(#REF!,MATCH(Calculations!$J$85,#REF!,0)+MATCH($J104,#REF!,0),7)) -> 
R105: Total | S105: =SUM(S88:S104) ->  | T105: =SUM(T88:T104) ->  | U105: =SUM(U88:U104) ->  | V105: =SUM(V88:V104) ->  | Y105: kWh | Z105: =SUMPRODUCT($Z$88:$Z$104, $L$88:$L$104)/SUM($L$88:$L$104) ->  | AA105: =Weighted Avg Capacity
A108: 7. For the building in question, determine Power Draw/% Time table
B109: See 6. above (Power Draw)
B111: Calculate Power Draw/SF
B112: See 6. above (Power Draw/SF)
A115: 8. Pd/SF x SFuser = Pd @ each schedule interval
B116: User Input SF: | D116: =Main!$G$19 -> <Select Annual Operating Days> | E116: SF | F116: Feed in from input page
B118: See 6. above (User Power Draw)
A121: 9. Create efficiencies table, using User Capacity
B122: User Input Capacity: | D122: =Capacity ->  | E122: kVA | F122: Feed in from input page
D124: Efficiencies
B125: Loading | C125: Power Draw | D125: Baseline | E125: Tier2 | F125: Tier2 NLL
A126: 0.01 | B126: 0 | C126: =B126*$D$122 ->  | D126: =($A126*$D$122*1000)/(($A126*$D$122*1000)+NLL_BL+($A126^2*LL_BL*T)) ->  | E126: =($A126*$D$122*1000)/(($A126*$D$122*1000)+NLL_Tier2+($A126^2*LL_Tier2*T)) ->  | F126: =($A126*$D$122*1000)/(($A126*$D$122*1000)+NLL_Tier2NLL+($A126^2*LL_Tier2NLL*T)) -> 
B127: 0.05 | C127: =B127*$D$122 ->  | D127: =($B127*$D$122*1000)/(($B127*$D$122*1000)+NLL_BL+($B127^2*LL_BL*T)) ->  | E127: =($B127*$D$122*1000)/(($B127*$D$122*1000)+NLL_Tier2+($B127^2*LL_Tier2*T)) ->  | F127: =($B127*$D$122*1000)/(($B127*$D$122*1000)+NLL_Tier2NLL+($B127^2*LL_Tier2NLL*T)) -> 
B128: 0.1
B129: 0.15
B130: 0.2
B131: 0.25
B132: 0.3
B133: 0.35
B134: 0.4
B135: 0.45
B136: 0.5
B137: 0.55
B138: 0.6
B139: 0.65
B140: 0.7
B141: 0.75
B142: 0.8
B143: 0.85
B144: 0.9
B145: 0.95
B146: 1
A149: 10. Vlookup efficiencies using Power Draws
B150: See 6. above (Efficiencies)
A153: 11. Calculate Building Energy Use of BL, Tier 2, Tier 2 + NLL
B154: Summation, for all N : [(PowerDrawN x ActualTimeN)/EfficiencyN]
B156: See 6. above (Building Energy Use)
A158: 12. Calculate Transformer Energy Use of BL, Tier 2, Tier 2 + NLL models
B159: Summation, for all N: [(PowerDrawN x ActualTimeN)/EfficiencyN]-(PowerDrawN x ActualTimeN)
B161: See 6. above (Transformer Energy Use)
A163: 12. Calculate Energy Savings & $
B164: BUILDING ENERGY USE | G164: TRANSFORMER ENERGY USE
C165: BL | D165: T2 | E165: T2NLL | J165: BL | K165: T2 | L165: T2NLL
B166: Building Energy Consump (kWh) | C166: =S105 ->  | D166: =T105 ->  | I166: Transformer Energy Consump (kWh) | J166: =$V$105 ->  | K166: =$W$105 ->  | L166: =$X$105 -> 
B167: Building Energy Cost ($) | C167: =C166*ElecCost ->  | D167: =D166*ElecCost ->  | E167: =E166*ElecCost ->  | I167: Transformer Energy Cost ($) | J167: =J166*ElecCost ->  | K167: =K166*ElecCost ->  | L167: =L166*ElecCost -> 
B168: Savings over BL (kWh) | C168: - | D168: =$C166-D166 ->  | E168: =$C166-E166 ->  | I168: Savings over BL (kWh) | J168: - | K168: =$J166-K166 ->  | L168: =$J166-L166 -> 
B169: Savings over BL ($) | C169: - | D169: =$C167-D167 ->  | E169: =$C167-E167 ->  | I169: Savings over BL ($) | J169: - | K169: =$J167-K167 ->  | L169: =$J167-L167 -> 
B170: Savings over BL (%) | C170: - | D170: =($C166-D166)/$C166 ->  | E170: =($C166-E166)/$C166 ->  | I170: Savings over BL (%) | J170: - | K170: =($J166-K166)/$J166 ->  | L170: =($J166-L166)/$J166 -> 

Sheet EIA Electricity Prices (hidden)
A1: EIA Table 5.6.B. Average Retail Price of Electricity to Ultimate Customers by End-Use Sector, by State, Year-to-Date through December 2011 and 2010
A2: (Cents per Kilowatthour)
B4: Residential | D4: Commercial1 | F4: Industrial1 | H4: Transportation[1] | J4: All Sectors
A5: Census Division
A6: and State
B7: 2011 | C7: 2010 | D7: 2011 | E7: 2010 | F7: 2011 | G7: 2010 | H7: 2011 | I7: 2010 | J7: 2011 | K7: 2010 | L7: Region | M7: Original Order
A8: Connecticut | B8: 18.11 | C8: 19.25 | D8: 15.48 | E8: 16.45 | F8: 13.37 | G8: 14.5 | H8: 10.33 | I8: 11.46 | J8: 16.33 | K8: 17.39 | L8: PADD1 | M8: 2
A9: Maine | B9: 15.41 | C9: 15.71 | D9: 12.27 | E9: 12.51 | F9: 8.9 | G9: 9.17 | H9: -- | I9: -- | J9: 12.58 | K9: 12.84 | L9: PADD1 | M9: 3
A10: Massachusetts | B10: 14.82 | C10: 14.59 | D10: 14.45 | E10: 14.53 | F10: 13.55 | G10: 13.71 | H10: 6.14 | I10: 6.46 | J10: 14.26 | K10: 14.26 | L10: PADD1 | M10: 4
A11: New Hampshire | B11: 16.54 | C11: 16.32 | D11: 14.02 | E11: 14.26 | F11: 12.32 | G11: 12.75 | H11: -- | I11: -- | J11: 14.75 | K11: 14.84 | L11: PADD1 | M11: 5
A12: Rhode Island | B12: 14.45 | C12: 15.92 | D12: 12.49 | E12: 13.11 | F12: 11.31 | G12: 11.82 | H12: 15.42 | I12: 13.86 | J12: 13.15 | K12: 14.08 | L12: PADD1 | M12: 6
A13: Vermont | B13: 16.28 | C13: 15.57 | D13: 13.95 | E13: 13.44 | F13: 9.86 | G13: 9.53 | H13: -- | I13: -- | J13: 13.79 | K13: 13.24 | L13: PADD1 | M13: 7
A14: New Jersey | B14: 16.24 | C14: 16.57 | D14: 13.48 | E14: 13.89 | F14: 11.5 | G14: 11.81 | H14: 10.71 | I14: 11.91 | J14: 14.32 | K14: 14.68 | L14: PADD1 | M14: 9
A15: New York | B15: 18.3 | C15: 18.74 | D15: 15.83 | E15: 16.31 | F15: 7.8 | G15: 8.78 | H15: 13.82 | I15: 13.74 | J15: 15.94 | K15: 16.41 | L15: PADD1 | M15: 10
A16: Pennsylvania | B16: 13.38 | C16: 12.7 | D16: 10.04 | E16: 10.1 | F16: 7.74 | G16: 7.66 | H16: 8.93 | I16: 7.92 | J16: 10.49 | K16: 10.31 | L16: PADD1 | M16: 11
A17: Delaware | B17: 13.74 | C17: 13.8 | D17: 10.62 | E17: 11.36 | F17: 9.05 | G17: 9.57 | H17: -- | I17: -- | J17: 11.53 | K17: 11.97 | L17: PADD1 | M17: 27
A18: District of Columbia | B18: 13.4 | C18: 14.01 | D18: 12.92 | E18: 13.42 | F18: 6.86 | G18: 7.78 | H18: 10.22 | I18: 11.04 | J18: 12.82 | K18: 13.35 | L18: PADD1 | M18: 28
A19: Florida | B19: 11.67 | C19: 11.44 | D19: 9.99 | E19: 9.76 | F19: 8.85 | G19: 8.85 | H19: 8.82 | I19: 8.58 | J19: 10.77 | K19: 10.58 | L19: PADD1 | M19: 29
A20: Georgia | B20: 11.07 | C20: 10.07 | D20: 9.92 | E20: 9.06 | F20: 6.64 | G20: 6.22 | H20: 7.94 | I20: 7.46 | J20: 9.65 | K20: 8.87 | L20: PADD1 | M20: 30
A21: Maryland | B21: 13.44 | C21: 14.32 | D21: 11.34 | E21: 11.75 | F21: 8.81 | G21: 9.57 | H21: 8.89 | I21: 9.78 | J21: 12.02 | K21: 12.7 | L21: PADD1 | M21: 31
A22: North Carolina | B22: 10.29 | C22: 10.12 | D22: 8.18 | E22: 8.16 | F22: 6.06 | G22: 6.17 | H22: 7.04 | I22: 7.09 | J22: 8.7 | K22: 8.67 | L22: PADD1 | M22: 32
A23: South Carolina | B23: 11.13 | C23: 10.5 | D23: 9.35 | E23: 8.9 | F23: 5.96 | G23: 5.74 | H23: -- | I23: -- | J23: 8.86 | K23: 8.49 | L23: PADD1 | M23: 33
A24: Virginia | B24: 10.68 | C24: 10.45 | D24: 7.93 | E24: 7.65 | F24: 6.61 | G24: 6.66 | H24: 8.24 | I24: 7.7 | J24: 8.87 | K24: 8.69 | L24: PADD1 | M24: 34
A25: West Virginia | B25: 9.4 | C25: 8.79 | D25: 8.14 | E25: 7.66 | F25: 6.18 | G25: 5.86 | H25: 8.6 | I25: 8.33 | J25: 7.88 | K25: 7.45 | L25: PADD1 | M25: 35
A26: Illinois | B26: 11.81 | C26: 11.52 | D26: 8.64 | E26: 8.88 | F26: 6.46 | G26: 6.82 | H26: 6.81 | I26: 6.71 | J26: 9.01 | K26: 9.13 | L26: PADD2 | M26: 13
A27: Indiana | B27: 10.06 | C27: 9.56 | D27: 8.74 | E27: 8.38 | F27: 6.25 | G27: 5.87 | H27: 9.74 | I27: 9.21 | J27: 8.04 | K27: 7.67 | L27: PADD2 | M27: 14
A28: Michigan | B28: 13.12 | C28: 12.46 | D28: 10.32 | E28: 9.81 | F28: 7.36 | G28: 7.08 | H28: 8.9 | I28: 10.65 | J28: 10.37 | K28: 9.88 | L28: PADD2 | M28: 15
A29: Ohio | B29: 11.44 | C29: 11.32 | D29: 9.6 | E29: 9.73 | F29: 6.21 | G29: 6.4 | H29: 6.65 | I29: 8.62 | J29: 9.05 | K29: 9.14 | L29: PADD2 | M29: 16
A30: Wisconsin | B30: 13.06 | C30: 12.65 | D30: 10.43 | E30: 9.98 | F30: 7.34 | G30: 6.85 | H30: -- | I30: -- | J30: 10.23 | K30: 9.78 | L30: PADD2 | M30: 17
A31: Iowa | B31: 10.5 | C31: 10.42 | D31: 7.9 | E31: 7.91 | F31: 5.21 | G31: 5.36 | H31: -- | I31: -- | J31: 7.59 | K31: 7.66 | L31: PADD2 | M31: 19
A32: Kansas | B32: 10.63 | C32: 10.03 | D32: 8.79 | E32: 8.25 | F32: 6.73 | G32: 6.23 | H32: -- | I32: -- | J32: 8.89 | K32: 8.35 | L32: PADD2 | M32: 20
A33: Minnesota | B33: 10.97 | C33: 10.59 | D33: 8.58 | E33: 8.38 | F33: 6.51 | G33: 6.29 | H33: 8.54 | I33: 7.77 | J33: 8.68 | K33: 8.41 | L33: PADD2 | M33: 21
A34: Missouri | B34: 9.78 | C34: 9.08 | D34: 8.04 | E34: 7.5 | F34: 5.95 | G34: 5.5 | H34: 6.9 | I34: 6.14 | J34: 8.35 | K34: 7.78 | L34: PADD2 | M34: 22
A35: Nebraska | B35: 9.3 | C35: 8.94 | D35: 8.04 | E35: 7.63 | F35: 6.26 | G35: 6 | H35: -- | I35: -- | J35: 7.84 | K35: 7.52 | L35: PADD2 | M35: 23
A36: North Dakota | B36: 8.56 | C36: 8.13 | D36: 7.58 | E36: 7.21 | F36: 6.25 | G36: 5.81 | H36: -- | I36: -- | J36: 7.49 | K36: 7.11 | L36: PADD2 | M36: 24
A37: South Dakota | B37: 9.34 | C37: 8.97 | D37: 7.77 | E37: 7.55 | F37: 6.3 | G37: 6.07 | H37: -- | I37: -- | J37: 8.09 | K37: 7.82 | L37: PADD2 | M37: 25
A38: Kentucky | B38: 9.09 | C38: 8.57 | D38: 8.41 | E38: 7.88 | F38: 5.31 | G38: 5.05 | H38: -- | I38: -- | J38: 7.11 | K38: 6.73 | L38: PADD2 | M38: 38
A39: Tennessee | B39: 9.83 | C39: 9.23 | D39: 10.12 | E39: 9.66 | F39: 7.12 | G39: 6.58 | H39: 12.07 | I39: 11.09 | J39: 9.14 | K39: 8.61 | L39: PADD2 | M39: 40
A40: Oklahoma | B40: 9.51 | C40: 9.14 | D40: 7.63 | E40: 7.45 | F40: 5.51 | G40: 5.35 | H40: -- | I40: -- | J40: 7.83 | K40: 7.59 | L40: PADD2 | M40: 44
A41: Alabama | B41: 11.3 | C41: 10.67 | D41: 10.47 | E41: 10.18 | F41: 6.33 | G41: 6.01 | H41: -- | I41: -- | J41: 9.21 | K41: 8.89 | L41: PADD3 | M41: 37
A42: Mississippi | B42: 10.14 | C42: 9.87 | D42: 9.48 | E42: 9.32 | F42: 6.57 | G42: 6.32 | H42: -- | I42: -- | J42: 8.78 | K42: 8.59 | L42: PADD3 | M42: 39
A43: Arkansas | B43: 9.05 | C43: 8.86 | D43: 7.55 | E43: 7.31 | F43: 5.65 | G43: 5.44 | H43: 11.86 | I43: 11.33 | J43: 7.46 | K43: 7.28 | L43: PADD3 | M43: 42
A44: Louisiana | B44: 9.06 | C44: 8.98 | D44: 8.47 | E44: 8.5 | F44: 5.71 | G44: 5.84 | H44: 8.33 | I44: 9.46 | J44: 7.74 | K44: 7.8 | L44: PADD3 | M44: 43
A45: Texas | B45: 11.27 | C45: 11.6 | D45: 8.96 | E45: 9.19 | F45: 6.34 | G45: 6.44 | H45: 10.08 | I45: 9.82 | J45: 9.18 | K45: 9.34 | L45: PADD3 | M45: 45
A46: New Mexico | B46: 11.04 | C46: 10.52 | D46: 8.93 | E46: 8.57 | F46: 6.11 | G46: 6.01 | H46: -- | I46: -- | J46: 8.71 | K46: 8.4 | L46: PADD3 | M46: 52
A47: Colorado | B47: 11.26 | C47: 11.04 | D47: 9.42 | E47: 9.13 | F47: 7.12 | G47: 6.9 | H47: 9.8 | I47: 9.34 | J47: 9.39 | K47: 9.15 | L47: PADD4 | M47: 48
A48: Idaho | B48: 7.9 | C48: 7.99 | D48: 6.41 | E48: 6.64 | F48: 5.16 | G48: 5.15 | H48: -- | I48: -- | J48: 6.48 | K48: 6.54 | L48: PADD4 | M48: 49
A49: Montana | B49: 9.77 | C49: 9.16 | D49: 9.13 | E49: 8.55 | F49: 5.25 | G49: 5.49 | H49: -- | I49: -- | J49: 8.23 | K49: 7.88 | L49: PADD4 | M49: 50
A50: Utah | B50: 8.97 | C50: 8.71 | D50: 7.35 | E50: 7.15 | F50: 5.11 | G50: 4.93 | H50: 9.24 | I50: 8.69 | J50: 7.13 | K50: 6.94 | L50: PADD4 | M50: 53
A51: Wyoming | B51: 9.14 | C51: 8.77 | D51: 7.72 | E51: 7.42 | F51: 5.4 | G51: 4.98 | H51: -- | I51: -- | J51: 6.58 | K51: 6.2 | L51: PADD4 | M51: 54
A52: Arizona | B52: 11.07 | C52: 10.97 | D52: 9.5 | E52: 9.47 | F52: 6.58 | G52: 6.63 | H52: -- | I52: -- | J52: 9.73 | K52: 9.69 | L52: PADD5 | M52: 47
A53: Nevada | B53: 11.61 | C53: 12.36 | D53: 9 | E53: 9.78 | F53: 6.66 | G53: 7.37 | H53: 8.33 | I53: 9.4 | J53: 8.96 | K53: 9.73 | L53: PADD5 | M53: 51
A54: California | B54: 15.24 | C54: 14.75 | D54: 13.81 | E54: 13.1 | F54: 11.01 | G54: 9.8 | H54: 8.24 | I54: 8.27 | J54: 13.79 | K54: 13.01 | L54: PADD5 | M54: 56
A55: Oregon | B55: 9.6 | C55: 8.87 | D55: 8.19 | E55: 7.59 | F55: 5.5 | G55: 5.41 | H55: 7.87 | I55: 6.99 | J55: 8.08 | K55: 7.56 | L55: PADD5 | M55: 57
A56: Washington | B56: 8.33 | C56: 8.04 | D56: 7.54 | E56: 7.37 | F56: 3.97 | G56: 4.07 | H56: 8.54 | I56: 7.42 | J56: 6.78 | K56: 6.66 | L56: PADD5 | M56: 58
A57: Alaska | B57: 17.57 | C57: 16.26 | D57: 14.94 | E57: 13.95 | F57: 15.53 | G57: 14.14 | H57: -- | I57: -- | J57: 15.96 | K57: 14.76 | L57: PADD5 | M57: 60
A58: Hawaii | B58: 34.68 | C58: 28.1 | D58: 32.38 | E58: 25.93 | F58: 28.4 | G58: 21.94 | H58: -- | I58: -- | J58: 31.59 | K58: 25.12 | L58: PADD5 | M58: 61
A59: New England | B59: 15.98 | C59: 16.24 | D59: 14.33 | E59: 14.72 | F59: 12.68 | G59: 12.98 | H59: 7.94 | I59: 8.45 | J59: 14.57 | K59: 14.89 | L59: Subdivision | M59: 1
A60: Middle Atlantic | B60: 15.86 | C60: 15.81 | D60: 13.66 | E60: 13.93 | F60: 8.17 | G60: 8.4 | H60: 12.56 | I60: 12.35 | J60: 13.41 | K60: 13.6 | L60: Subdivision | M60: 8
A61: East North Central | B61: 11.78 | C61: 11.41 | D61: 9.48 | E61: 9.36 | F61: 6.59 | G61: 6.53 | H61: 6.93 | I61: 6.93 | J61: 9.24 | K61: 9.08 | L61: Subdivision | M61: 12
A62: West North Central | B62: 10.13 | C62: 9.64 | D62: 8.23 | E62: 7.87 | F62: 6.09 | G62: 5.86 | H62: 7.64 | I62: 6.95 | J62: 8.28 | K62: 7.93 | L62: Subdivision | M62: 18
A63: South Atlantic | B63: 11.27 | C63: 10.96 | D63: 9.52 | E63: 9.29 | F63: 6.75 | G63: 6.66 | H63: 8.98 | I63: 9.38 | J63: 9.81 | K63: 9.61 | L63: Subdivision | M63: 26
A64: East South Central | B64: 10.11 | C64: 9.58 | D64: 9.73 | E64: 9.34 | F64: 6.18 | G64: 5.83 | H64: 12.07 | I64: 11.09 | J64: 8.55 | K64: 8.16 | L64: Subdivision | M64: 36
A65: West South Central | B65: 10.55 | C65: 10.67 | D65: 8.66 | E65: 8.78 | F65: 6.06 | G65: 6.12 | H65: 9.85 | I65: 9.78 | J65: 8.67 | K65: 8.74 | L65: Subdivision | M65: 41
A66: Mountain | B66: 10.57 | C66: 10.49 | D66: 8.83 | E66: 8.75 | F66: 6.11 | G66: 6.13 | H66: 9.47 | I66: 9.1 | J66: 8.63 | K66: 8.59 | L66: Subdivision | M66: 46
A67: Pacific Contiguous | B67: 12.74 | C67: 12.31 | D67: 12.14 | E67: 11.58 | F67: 7.92 | G67: 7.47 | H67: 8.23 | I67: 8.23 | J67: 11.44 | K67: 10.92 | L67: Subdivision | M67: 55
A68: Pacific Noncontiguous | B68: 27.48 | C68: 23.22 | D68: 24.4 | E68: 20.45 | F68: 24.99 | G68: 19.88 | H68: -- | I68: -- | J68: 25.54 | K68: 21.14 | L68: Subdivision | M68: 59
A69: U.S. Total | B69: 11.8 | C69: 11.54 | D69: 10.32 | E69: 10.19 | F69: 6.89 | G69: 6.77 | H69: 10.58 | I69: 10.57 | J69: 9.99 | K69: 9.83 | L69: Nation | M69: 62

Sheet Dropdowns (hidden)
A2: Value | C2: =IF(Main!G17<>"Other",Main!G17,Main!H17) -> <Select Building Type> | D2: =IF(Main!G27<>"Other",Main!G27,Main!H27) -> <Select Electricity Region> | E2: =IF(Main!G29<>"Other",Main!G29,Main!H29) -> - | F2: =IF(Main!G19<>"Other",Main!G19,Main!H19) -> <Select Annual Operating Days> | G2: =IF(Main!G21<>"Other",Main!G21,Main!H21) -> <Select Hot Water Consumption> | H2: =IF(Main!G23<>"Other",Main!G23,Main!H23) -> <Select Inlet Temperature> | I2: =IF(Main!G25<>"Other",Main!G25,Main!H25) -> <Select Outlet Temperature> | J2: =Calculations!C14 -> 1 | K2: =Calculations!C34 -> 0.7
A3: Dropdown Name | C3: Building_Type | D3: Electricity_Region | E3: Electricity_Costs | F3: Days_Operating | G3: HW_Consumption | H3: Inlet_Temp | I3: Outlet_Temp | J3: HP_Efficiency | K3: Savings
A4: Entries | C4: <Select Building Type> | D4: <Select Electricity Region> | E4: =IF(Main!G27=Calculations!C24,Calculations!C25,IF(Main!G27=Calculations!D24,Calculations!D25,IF(Main!G27=Calculations!E24,Calculations!E25,IF(Main!G27=Calculations!F24,Calculations!F25,IF(Main!G27=Calculations!G24,Calculations!G25,IF(Main!G27=Calculations!H24,Calculations!H25,"-")))))) -> - | F4: <Select Annual Operating Days> | G4: <Select Hot Water Consumption> | H4: <Select Inlet Temperature> | I4: <Select Outlet Temperature>
C5: Quick Service Chain | D5: East Coast (PADD 1) | E5: Other | F5: =IF(Main!G17=Calculations!C2, Calculations!C3,IF(Main!G17=Calculations!D2,Calculations!D3,"-")) -> - | G5: =IF(Main!G17=Calculations!C2, Calculations!C4,IF(Main!G17=Calculations!D2,Calculations!D4,"-")) -> - | H5: =IF(Main!G17=Calculations!C2,Calculations!C5,IF(Main!G17=Calculations!D2,Calculations!D5,"-")) -> - | I5: =IF(Main!G17=Calculations!C2,Calculations!C6,IF(Main!G17=Calculations!D2,Calculations!D6,"-")) -> -
C6: Small Box Coffee | D6: Midwest (PADD 2) | F6: Other | G6: Other | H6: Other | I6: Other
C7: Other | D7: Gulf Coast (PADD 3)
D8: Rocky Mountain (PADD 4)
D9: West Coast (PADD 5)
D10: U.S. Average
A16: Calculations for Table
C18: Metric | D18: Value
C19: Annual water heating load | D19: =F2*G2*(I2-H2)*Calculations!C7*Calculations!C8 -> 
C20: Annual energy consumption (kWh) | D20: =D19/J2 -> 
C21: Annual energy consumption (kWh) | D21: =D20/Calculations!C19 -> 
C23: HPWH annual energy consumption | D23: =(1-K2)*D19 -> 
C24: HPWH annual energy consumption (kWh) | D24: =D23/Calculations!C19 -> 

Sheet Assumptions (hidden)
A1: Heat Pump Efficiency | F1: Source
A2: 1 | F2: Zogg et al., “Energy Savings Potential and RD&D Opportunities for Commercial Building Appliances ” (Navigant Consulting, Inc., 2009).
A4: Heat pump savings over electric storage water heater
A5: 0.7 | F5: Zogg et al., “Energy Savings Potential and RD&D Opportunities for Commercial Building Appliances ” (Navigant Consulting, Inc., 2009).
